[Event "Titled Tuesday Blitz March 15 Late 2022"]
[White "Sanchez, Robert"]
[Black "Mikhalsky, Vladimir"]
[WhiteFideId "2034360"]
[BlackFideId "14144352"]
[WhiteElo "2314"]
[BlackElo "2301"]
[Result "1-0"]
[Round "09"]
[TimeControl "180+1"]
[Date "2022.03.16"]
[WhiteClock "0:01:45"]
[BlackClock "0:01:18"]

1. e4 {[%clk 0:03:00]}  c5 {[%clk 0:02:59]} 2. Nf3 {[%clk 0:03:01]}  Nc6 {[%clk 0:02:58]} 3. d4 {[%clk 0:02:59]}  cxd4 {[%clk 0:02:59]} 4. c3 {[%clk 0:03:00]}  d3 {[%clk 0:02:57]} 5. Bxd3 {[%clk 0:03:00]}  g6 {[%clk 0:02:57]} 6. Bc4 {[%clk 0:03:00]}  Bg7 {[%clk 0:02:56]} 7. e5 {[%clk 0:03:00]}  Nxe5 {[%clk 0:02:53]} 8. Nxe5 {[%clk 0:03:00]}  Bxe5 {[%clk 0:02:49]} 9. Qd5 {[%clk 0:02:54]}  d6 {[%clk 0:02:46]} 10. Qxf7+ {[%clk 0:02:53]}  Kd7 {[%clk 0:02:45]} 11. O-O {[%clk 0:02:47]}  Kc7 {[%clk 0:02:43]} 12. Na3 {[%clk 0:02:45]}  a6 {[%clk 0:02:43]} 13. Bd5 {[%clk 0:02:40]}  Nf6 {[%clk 0:02:28]} 14. Bf3 {[%clk 0:02:32]}  Bg4 {[%clk 0:02:21]} 15. Bxg4 {[%clk 0:02:25]}  Nxg4 {[%clk 0:02:21]} 16. h3 {[%clk 0:02:26]}  Nf6 {[%clk 0:01:42]} 17. f4 {[%clk 0:02:24]}  Rf8 {[%clk 0:01:42]} 18. Qc4+ {[%clk 0:02:22]}  Kb8 {[%clk 0:01:41]} 19. fxe5 {[%clk 0:02:23]}  dxe5 {[%clk 0:01:40]} 20. Be3 {[%clk 0:02:19]}  Nh5 {[%clk 0:01:35]} 21. Rxf8 {[%clk 0:02:06]}  Qxf8 {[%clk 0:01:35]} 22. Qc5 {[%clk 0:02:05]}  Qf6 {[%clk 0:01:29]} 23. Rd1 {[%clk 0:02:00]}  e6 {[%clk 0:01:29]} 24. Qb6 {[%clk 0:01:51]}  Kc8 {[%clk 0:01:26]} 25. Nc4 {[%clk 0:01:47]}  Nf4 {[%clk 0:01:23]} 26. Nd6+ {[%clk 0:01:45]}  Kd7 {[%clk 0:01:23]} 27. Ne4+ {[%clk 0:01:45]}  Ke7 {[%clk 0:01:19]} 28. Qc7+ {[%clk 0:01:44]}  Kf8 {[%clk 0:01:18]} 29. Nxf6 {[%clk 0:01:45]} 1-0


[Site "https://www.chess.com"]

[Event "Titled Tuesday Blitz March 15 Late 2022"]
[White "Srihari L R"]
[Black "Iskusnyh, Sergei"]
[WhiteFideId "46617116"]
[BlackFideId "4120027"]
[WhiteElo "2121"]
[BlackElo "2492"]
[Result "0-1"]
[Round "09"]
[TimeControl "180+1"]
[Date "2022.03.15"]
[WhiteClock "0:00:01"]
[BlackClock "0:00:38"]

1. Nf3 {[%clk 0:02:56]}  d5 {[%clk 0:02:58]} 2. g3 {[%clk 0:02:56]}  Nf6 {[%clk 0:02:57]} 3. Bg2 {[%clk 0:02:56]}  c6 {[%clk 0:02:58]} 4. O-O {[%clk 0:02:56]}  Bf5 {[%clk 0:02:58]} 5. d3 {[%clk 0:02:56]}  e6 {[%clk 0:02:59]} 6. Nbd2 {[%clk 0:02:49]}  h6 {[%clk 0:02:58]} 7. Qe1 {[%clk 0:02:42]}  Be7 {[%clk 0:02:57]} 8. e4 {[%clk 0:02:41]}  Bh7 {[%clk 0:02:58]} 9. e5 {[%clk 0:02:41]}  Nfd7 {[%clk 0:02:57]} 10. Qe2 {[%clk 0:02:39]}  O-O {[%clk 0:02:57]} 11. Re1 {[%clk 0:02:35]}  c5 {[%clk 0:02:57]} 12. c3 {[%clk 0:02:35]}  Nc6 {[%clk 0:02:58]} 13. a3 {[%clk 0:02:34]}  b5 {[%clk 0:02:54]} 14. d4 {[%clk 0:02:33]}  cxd4 {[%clk 0:02:52]} 15. cxd4 {[%clk 0:02:32]}  Qb6 {[%clk 0:02:49]} 16. Nb3 {[%clk 0:02:26]}  a5 {[%clk 0:02:47]} 17. Be3 {[%clk 0:02:25]}  a4 {[%clk 0:02:47]} 18. Nc1 {[%clk 0:02:13]}  b4 {[%clk 0:02:44]} 19. Nd3 {[%clk 0:02:12]}  Qb5 {[%clk 0:02:24]} 20. Bf1 {[%clk 0:02:09]}  Rfb8 {[%clk 0:02:17]} 21. Rec1 {[%clk 0:01:59]}  bxa3 {[%clk 0:02:12]} 22. bxa3 {[%clk 0:01:58]}  Na5 {[%clk 0:02:10]} 23. Qc2 {[%clk 0:01:46]}  Nb3 {[%clk 0:02:01]} 24. Rab1 {[%clk 0:01:40]}  Qb7 {[%clk 0:01:47]} 25. Qb2 {[%clk 0:01:22]}  Nxc1 {[%clk 0:01:31]} 26. Qxb7 {[%clk 0:01:20]}  Rxb7 {[%clk 0:01:30]} 27. Rxb7 {[%clk 0:01:21]}  Nxd3 {[%clk 0:01:30]} 28. Rxd7 {[%clk 0:01:20]}  Bxa3 {[%clk 0:01:29]} 29. Nd2 {[%clk 0:01:06]}  Bb2 {[%clk 0:01:24]} 30. Rb7 {[%clk 0:00:44]}  a3 {[%clk 0:01:23]} 31. Nb3 {[%clk 0:00:40]}  a2 {[%clk 0:01:20]} 32. Kg2 {[%clk 0:00:38]}  Ne1+ {[%clk 0:01:12]} 33. Kh3 {[%clk 0:00:36]}  a1=Q {[%clk 0:01:07]} 34. Nxa1 {[%clk 0:00:33]}  Bxa1 {[%clk 0:01:08]} 35. g4 {[%clk 0:00:24]}  Nc2 {[%clk 0:01:04]} 36. Kg3 {[%clk 0:00:19]}  Bxd4 {[%clk 0:01:03]} 37. Bxd4 {[%clk 0:00:16]}  Nxd4 {[%clk 0:01:03]} 38. f4 {[%clk 0:00:17]}  Be4 {[%clk 0:01:00]} 39. h4 {[%clk 0:00:05]}  Ra3+ {[%clk 0:01:00]} 40. Kf2 {[%clk 0:00:05]}  Rf3+ {[%clk 0:00:59]} 41. Ke1 {[%clk 0:00:06]}  Rxf4 {[%clk 0:00:54]} 42. g5 {[%clk 0:00:04]}  hxg5 {[%clk 0:00:53]} 43. hxg5 {[%clk 0:00:05]}  Nf3+ {[%clk 0:00:53]} 44. Ke2 {[%clk 0:00:05]}  Nxe5 {[%clk 0:00:50]} 45. Bh3 {[%clk 0:00:03]}  g6 {[%clk 0:00:42]} 46. Ke3 {[%clk 0:00:02]}  Rf3+ {[%clk 0:00:41]} 47. Kd4 {[%clk 0:00:02]}  Rxh3 {[%clk 0:00:40]} 48. Kxe5 {[%clk 0:00:02]}  Kg7 {[%clk 0:00:40]} 49. Rb8 {[%clk 0:00:02]}  Rf3 {[%clk 0:00:40]} 50. Kd4 {[%clk 0:00:02]}  Rf5 {[%clk 0:00:38]} 51. Rb7 {[%clk 0:00:01]}  e5+ {[%clk 0:00:38]} 0-1


[Site "https://www.chess.com"]

[Event "Titled Tuesday Blitz March 15 Late 2022"]
[White "Tang, Andrew"]
[Black "Fedoseev, Vladimir"]
[WhiteFideId "2059630"]
[BlackFideId "24130737"]
[WhiteElo "2584"]
[BlackElo "2726"]
[Result "0-1"]
[Round "09"]
[TimeControl "180+1"]
[Date "2022.03.15"]
[WhiteClock "0:00:04"]
[BlackClock "0:00:32"]

1. e4 {[%clk 0:02:53]}  c6 {[%clk 0:03:00]} 2. Nc3 {[%clk 0:02:48]}  d5 {[%clk 0:03:00]} 3. Nf3 {[%clk 0:02:49]}  Bg4 {[%clk 0:02:59]} 4. h3 {[%clk 0:02:49]}  Bxf3 {[%clk 0:02:59]} 5. Qxf3 {[%clk 0:02:50]}  Nf6 {[%clk 0:02:59]} 6. g4 {[%clk 0:02:51]}  d4 {[%clk 0:02:43]} 7. Ne2 {[%clk 0:02:50]}  e5 {[%clk 0:02:40]} 8. Bg2 {[%clk 0:02:49]}  c5 {[%clk 0:02:36]} 9. O-O {[%clk 0:02:45]}  Nc6 {[%clk 0:02:36]} 10. g5 {[%clk 0:02:07]}  Nd7 {[%clk 0:02:36]} 11. d3 {[%clk 0:02:06]}  Bd6 {[%clk 0:02:34]} 12. a3 {[%clk 0:02:00]}  Qe7 {[%clk 0:02:30]} 13. Qg4 {[%clk 0:01:55]}  O-O-O {[%clk 0:02:22]} 14. f4 {[%clk 0:01:54]}  Kb8 {[%clk 0:02:16]} 15. f5 {[%clk 0:01:36]}  f6 {[%clk 0:02:15]} 16. h4 {[%clk 0:01:33]}  Rc8 {[%clk 0:02:09]} 17. Bd2 {[%clk 0:01:29]}  h6 {[%clk 0:01:57]} 18. Ng3 {[%clk 0:01:14]}  hxg5 {[%clk 0:01:47]} 19. hxg5 {[%clk 0:01:15]}  c4 {[%clk 0:01:42]} 20. dxc4 {[%clk 0:00:53]}  d3 {[%clk 0:01:41]} 21. b4 {[%clk 0:00:46]}  dxc2 {[%clk 0:01:36]} 22. Ne2 {[%clk 0:00:45]}  Nd4 {[%clk 0:01:35]} 23. c5 {[%clk 0:00:40]}  Nb3 {[%clk 0:00:50]} 24. Be3 {[%clk 0:00:08]}  Nxa1 {[%clk 0:00:49]} 25. Rxa1 {[%clk 0:00:09]}  Nxc5 {[%clk 0:00:49]} 26. bxc5 {[%clk 0:00:09]}  Bxc5 {[%clk 0:00:50]} 27. Qf3 {[%clk 0:00:08]}  Rhd8 {[%clk 0:00:50]} 28. Kh2 {[%clk 0:00:04]}  Rd1 {[%clk 0:00:48]} 29. Bc1 {[%clk 0:00:03]}  Qd6 {[%clk 0:00:43]} 30. Kg3 {[%clk 0:00:02]}  Rd3 {[%clk 0:00:42]} 31. g6 {[%clk 0:00:02]}  Rxf3+ {[%clk 0:00:42]} 32. Bxf3 {[%clk 0:00:03]}  Qd3 {[%clk 0:00:41]} 33. Bb2 {[%clk 0:00:03]}  Qe3 {[%clk 0:00:40]} 34. Rf1 {[%clk 0:00:03]}  Rh8 {[%clk 0:00:39]} 35. Bc1 {[%clk 0:00:04]}  Qd3 {[%clk 0:00:39]} 36. a4 {[%clk 0:00:04]}  Be3 {[%clk 0:00:38]} 37. Bb2 {[%clk 0:00:04]}  Qd1 {[%clk 0:00:37]} 38. Kg2 {[%clk 0:00:04]}  Rc8 {[%clk 0:00:34]} 39. Bc1 {[%clk 0:00:02]}  Bxc1 {[%clk 0:00:33]} 40. Nxc1 {[%clk 0:00:03]}  Qd2+ {[%clk 0:00:33]} 41. Kg3 {[%clk 0:00:04]}  Rc3 {[%clk 0:00:32]} 42. Kh3 {[%clk 0:00:03]}  Rxf3+ {[%clk 0:00:32]} 43. Rxf3 {[%clk 0:00:04]}  Qxc1 {[%clk 0:00:32]} 0-1


[Site "https://www.chess.com"]

[Event "Titled Tuesday Blitz March 15 Late 2022"]
[White "Thavandiran, Shiyam"]
[Black "Ljukin, Sergei"]
[WhiteFideId "2605058"]
[BlackFideId "14102200"]
[WhiteElo "2357"]
[BlackElo "2312"]
[Result "1-0"]
[Round "09"]
[TimeControl "180+1"]
[Date "2022.03.15"]
[WhiteClock "0:02:29"]
[BlackClock "0:02:03"]

1. e4 {[%clk 0:02:57]}  e6 {[%clk 0:02:56]} 2. d4 {[%clk 0:02:56]}  d5 {[%clk 0:02:57]} 3. exd5 {[%clk 0:02:52]}  exd5 {[%clk 0:02:57]} 4. Nf3 {[%clk 0:02:52]}  Nf6 {[%clk 0:02:57]} 5. Bd3 {[%clk 0:02:52]}  c5 {[%clk 0:02:56]} 6. O-O {[%clk 0:02:50]}  Nc6 {[%clk 0:02:56]} 7. Re1+ {[%clk 0:02:49]}  Be7 {[%clk 0:02:57]} 8. dxc5 {[%clk 0:02:47]}  O-O {[%clk 0:02:57]} 9. Nc3 {[%clk 0:02:43]}  Bxc5 {[%clk 0:02:53]} 10. Bg5 {[%clk 0:02:42]}  d4 {[%clk 0:02:53]} 11. Bxf6 {[%clk 0:02:30]}  dxc3 {[%clk 0:02:03]} 12. Bxd8 {[%clk 0:02:29]} 1-0


[Site "https://www.chess.com"]

[Event "Titled Tuesday Blitz March 15 Late 2022"]
[White "Toncheva, Nadya"]
[Black "Van den Dikkenberg, Erik"]
[WhiteFideId "2924056"]
[BlackFideId "1005880"]
[WhiteElo "1884"]
[BlackElo "2118"]
[Result "1-0"]
[Round "09"]
[TimeControl "180+1"]
[Date "2022.03.16"]
[WhiteClock "0:00:10"]
[BlackClock "0:00:11"]

1. e4 {[%clk 0:02:32]}  c5 {[%clk 0:02:59]} 2. Nf3 {[%clk 0:02:31]}  d6 {[%clk 0:03:00]} 3. d4 {[%clk 0:02:28]}  cxd4 {[%clk 0:03:00]} 4. Nxd4 {[%clk 0:02:29]}  Nf6 {[%clk 0:03:00]} 5. f3 {[%clk 0:02:25]}  a6 {[%clk 0:02:59]} 6. c4 {[%clk 0:02:24]}  e5 {[%clk 0:02:58]} 7. Nc2 {[%clk 0:02:24]}  Be7 {[%clk 0:02:58]} 8. Nc3 {[%clk 0:02:23]}  O-O {[%clk 0:02:58]} 9. Be3 {[%clk 0:02:23]}  Be6 {[%clk 0:02:57]} 10. Qd2 {[%clk 0:02:21]}  Nbd7 {[%clk 0:02:57]} 11. Be2 {[%clk 0:02:20]}  Rc8 {[%clk 0:02:56]} 12. b3 {[%clk 0:02:20]}  Qa5 {[%clk 0:02:37]} 13. O-O {[%clk 0:02:17]}  b5 {[%clk 0:02:36]} 14. Nd5 {[%clk 0:02:16]}  Qd8 {[%clk 0:02:29]} 15. Nxe7+ {[%clk 0:02:12]}  Qxe7 {[%clk 0:02:29]} 16. cxb5 {[%clk 0:02:13]}  axb5 {[%clk 0:02:22]} 17. Bxb5 {[%clk 0:02:14]}  d5 {[%clk 0:02:03]} 18. exd5 {[%clk 0:02:08]}  Nxd5 {[%clk 0:02:03]} 19. Bf2 {[%clk 0:02:01]}  Nc5 {[%clk 0:01:50]} 20. Rac1 {[%clk 0:01:52]}  Nf4 {[%clk 0:01:41]} 21. Rfd1 {[%clk 0:01:48]}  Rfd8 {[%clk 0:01:28]} 22. Qe3 {[%clk 0:00:57]}  Rxd1+ {[%clk 0:01:24]} 23. Rxd1 {[%clk 0:00:54]}  Bf5 {[%clk 0:01:21]} 24. Nb4 {[%clk 0:00:38]}  g5 {[%clk 0:01:01]} 25. Nc6 {[%clk 0:00:35]}  Rxc6 {[%clk 0:00:49]} 26. Bxc6 {[%clk 0:00:34]}  Ncd3 {[%clk 0:00:47]} 27. Be4 {[%clk 0:00:34]}  Nxf2 {[%clk 0:00:35]} 28. Kxf2 {[%clk 0:00:31]}  Be6 {[%clk 0:00:28]} 29. g3 {[%clk 0:00:20]}  Ng6 {[%clk 0:00:25]} 30. Bd5 {[%clk 0:00:20]}  Bxd5 {[%clk 0:00:21]} 31. Rxd5 {[%clk 0:00:21]}  Qa3 {[%clk 0:00:20]} 32. Qd2 {[%clk 0:00:20]}  h6 {[%clk 0:00:17]} 33. Kg2 {[%clk 0:00:19]}  Kg7 {[%clk 0:00:17]} 34. b4 {[%clk 0:00:18]}  Qa4 {[%clk 0:00:15]} 35. b5 {[%clk 0:00:17]}  Qc4 {[%clk 0:00:13]} 36. b6 {[%clk 0:00:17]}  e4 {[%clk 0:00:13]} 37. Qd4+ {[%clk 0:00:13]}  Qxd4 {[%clk 0:00:13]} 38. Rxd4 {[%clk 0:00:14]}  exf3+ {[%clk 0:00:13]} 39. Kxf3 {[%clk 0:00:11]}  Ne5+ {[%clk 0:00:13]} 40. Ke4 {[%clk 0:00:10]}  Nc6 {[%clk 0:00:13]} 41. Rd7 {[%clk 0:00:10]}  Kf8 {[%clk 0:00:12]} 42. b7 {[%clk 0:00:10]}  Ke8 {[%clk 0:00:13]} 43. Rc7 {[%clk 0:00:10]}  Nb8 {[%clk 0:00:11]} 44. Rc8+ {[%clk 0:00:10]} 1-0


[Site "https://www.chess.com"]

[Event "Titled Tuesday Blitz March 15 Late 2022"]
[White "Urazayev, Arystanbek"]
[Black "Martinez Alcantara, Jose Eduardo"]
[WhiteFideId "13709810"]
[BlackFideId "3805662"]
[WhiteElo "2393"]
[BlackElo "2690"]
[Result "1/2-1/2"]
[Round "09"]
[TimeControl "180+1"]
[Date "2022.03.15"]
[WhiteClock "0:00:09"]
[BlackClock "0:00:04"]

1. d4 {[%clk 0:03:00]}  Nf6 {[%clk 0:02:59]} 2. c4 {[%clk 0:03:00]}  e6 {[%clk 0:02:57]} 3. Nc3 {[%clk 0:03:01]}  Bb4 {[%clk 0:02:57]} 4. Nf3 {[%clk 0:03:01]}  b6 {[%clk 0:02:57]} 5. e3 {[%clk 0:03:00]}  Bb7 {[%clk 0:02:57]} 6. Bd3 {[%clk 0:03:00]}  Bxc3+ {[%clk 0:02:52]} 7. bxc3 {[%clk 0:03:00]}  O-O {[%clk 0:02:53]} 8. O-O {[%clk 0:02:59]}  d6 {[%clk 0:02:53]} 9. Qc2 {[%clk 0:02:56]}  Nbd7 {[%clk 0:02:49]} 10. e4 {[%clk 0:02:56]}  e5 {[%clk 0:02:49]} 11. Rb1 {[%clk 0:02:52]}  Re8 {[%clk 0:02:47]} 12. Re1 {[%clk 0:02:50]}  c5 {[%clk 0:02:46]} 13. d5 {[%clk 0:02:46]}  Nf8 {[%clk 0:02:45]} 14. a4 {[%clk 0:02:38]}  Bc8 {[%clk 0:02:42]} 15. g3 {[%clk 0:02:11]}  Ng6 {[%clk 0:02:38]} 16. Nd2 {[%clk 0:02:05]}  Bd7 {[%clk 0:02:30]} 17. Nf1 {[%clk 0:02:01]}  h6 {[%clk 0:02:21]} 18. Ra1 {[%clk 0:01:56]}  Rb8 {[%clk 0:02:17]} 19. Ne3 {[%clk 0:01:56]}  Qc7 {[%clk 0:02:08]} 20. Ng2 {[%clk 0:01:50]}  Bh3 {[%clk 0:01:56]} 21. f3 {[%clk 0:01:47]}  Bd7 {[%clk 0:01:49]} 22. Be3 {[%clk 0:01:39]}  a6 {[%clk 0:01:50]} 23. Reb1 {[%clk 0:01:24]}  Nh7 {[%clk 0:01:45]} 24. Rb2 {[%clk 0:01:23]}  Ng5 {[%clk 0:01:36]} 25. Bxg5 {[%clk 0:01:19]}  hxg5 {[%clk 0:01:36]} 26. Ne3 {[%clk 0:01:19]}  Ne7 {[%clk 0:01:26]} 27. Nf5 {[%clk 0:01:14]}  g6 {[%clk 0:01:12]} 28. Nxe7+ {[%clk 0:01:09]}  Rxe7 {[%clk 0:01:12]} 29. Qd2 {[%clk 0:01:10]}  f6 {[%clk 0:01:13]} 30. a5 {[%clk 0:00:55]}  bxa5 {[%clk 0:01:08]} 31. Rxb8+ {[%clk 0:00:56]}  Qxb8 {[%clk 0:01:08]} 32. Rxa5 {[%clk 0:00:56]}  Bc8 {[%clk 0:01:08]} 33. Ra2 {[%clk 0:00:43]}  Rb7 {[%clk 0:01:08]} 34. f4 {[%clk 0:00:38]}  gxf4 {[%clk 0:00:49]} 35. gxf4 {[%clk 0:00:39]}  Kg7 {[%clk 0:00:49]} 36. fxe5 {[%clk 0:00:34]}  fxe5 {[%clk 0:00:37]} 37. Qg5 {[%clk 0:00:31]}  Rf7 {[%clk 0:00:35]} 38. Rf2 {[%clk 0:00:17]}  Rxf2 {[%clk 0:00:31]} 39. Kxf2 {[%clk 0:00:18]}  Qc7 {[%clk 0:00:31]} 40. Kg3 {[%clk 0:00:15]}  Qd7 {[%clk 0:00:30]} 41. h4 {[%clk 0:00:15]}  Qh3+ {[%clk 0:00:30]} 42. Kf2 {[%clk 0:00:14]}  Kf7 {[%clk 0:00:17]} 43. Qh6 {[%clk 0:00:11]}  Qxd3 {[%clk 0:00:09]} 44. Qh7+ {[%clk 0:00:12]}  Ke8 {[%clk 0:00:10]} 45. Qxg6+ {[%clk 0:00:08]}  Kd7 {[%clk 0:00:08]} 46. h5 {[%clk 0:00:08]}  Qd2+ {[%clk 0:00:07]} 47. Kg3 {[%clk 0:00:05]}  Qf4+ {[%clk 0:00:07]} 48. Kg2 {[%clk 0:00:06]}  Kc7 {[%clk 0:00:07]} 49. h6 {[%clk 0:00:06]}  Qd2+ {[%clk 0:00:05]} 50. Kg3 {[%clk 0:00:07]}  Qxc3+ {[%clk 0:00:06]} 51. Kg2 {[%clk 0:00:07]}  Qd2+ {[%clk 0:00:05]} 52. Kg3 {[%clk 0:00:07]}  Qe3+ {[%clk 0:00:06]} 53. Kg2 {[%clk 0:00:08]}  Qe2+ {[%clk 0:00:06]} 54. Kg3 {[%clk 0:00:08]}  Qd3+ {[%clk 0:00:03]} 55. Kg2 {[%clk 0:00:08]}  Qd2+ {[%clk 0:00:03]} 56. Kg3 {[%clk 0:00:09]}  Qc3+ {[%clk 0:00:03]} 57. Kg2 {[%clk 0:00:09]}  Qd2+ {[%clk 0:00:04]} 1/2-1/2


[Site "https://www.chess.com"]

[Event "Titled Tuesday Blitz March 15 Late 2022"]
[White "Vargas Pereda, Jesus Manue"]
[Black "Cagara, Paulina"]
[WhiteFideId "5115710"]
[BlackFideId "1124870"]
[WhiteElo "1860"]
[BlackElo "1780"]
[Result "0-1"]
[Round "09"]
[TimeControl "180+1"]
[Date "2022.03.16"]
[WhiteClock "0:00:22"]
[BlackClock "0:00:17"]

1. d4 {[%clk 0:03:00]}  f5 {[%clk 0:02:59]} 2. Qd3 {[%clk 0:02:56]}  d6 {[%clk 0:02:58]} 3. g4 {[%clk 0:02:56]}  fxg4 {[%clk 0:02:52]} 4. h3 {[%clk 0:02:56]}  Nf6 {[%clk 0:02:49]} 5. hxg4 {[%clk 0:02:54]}  Bxg4 {[%clk 0:02:47]} 6. f3 {[%clk 0:02:54]}  Bh5 {[%clk 0:02:42]} 7. e4 {[%clk 0:02:54]}  Bg6 {[%clk 0:02:40]} 8. Nc3 {[%clk 0:02:53]}  Nc6 {[%clk 0:02:36]} 9. Nh3 {[%clk 0:02:49]}  e5 {[%clk 0:02:27]} 10. Be3 {[%clk 0:02:44]}  exd4 {[%clk 0:02:26]} 11. Bxd4 {[%clk 0:02:44]}  Nxd4 {[%clk 0:02:26]} 12. Qxd4 {[%clk 0:02:44]}  Nh5 {[%clk 0:02:10]} 13. O-O-O {[%clk 0:02:39]}  Qf6 {[%clk 0:01:57]} 14. Qa4+ {[%clk 0:02:31]}  c6 {[%clk 0:01:56]} 15. Nd5 {[%clk 0:02:29]}  Qd8 {[%clk 0:01:47]} 16. Nhf4 {[%clk 0:02:13]}  Nxf4 {[%clk 0:01:46]} 17. Nxf4 {[%clk 0:02:12]}  Qg5 {[%clk 0:01:45]} 18. e5 {[%clk 0:01:53]}  dxe5 {[%clk 0:01:43]} 19. Qb3 {[%clk 0:01:46]}  Qxf4+ {[%clk 0:01:40]} 20. Kb1 {[%clk 0:01:47]}  Qf5 {[%clk 0:01:15]} 21. Bd3 {[%clk 0:01:43]}  Qf7 {[%clk 0:01:13]} 22. Bc4 {[%clk 0:01:42]}  Qc7 {[%clk 0:01:06]} 23. Rhe1 {[%clk 0:01:29]}  Bd6 {[%clk 0:01:03]} 24. f4 {[%clk 0:01:27]}  O-O-O {[%clk 0:01:03]} 25. fxe5 {[%clk 0:01:26]}  Bxe5 {[%clk 0:00:55]} 26. Be6+ {[%clk 0:01:20]}  Kb8 {[%clk 0:00:54]} 27. Bc4 {[%clk 0:01:15]}  Rxd1+ {[%clk 0:00:53]} 28. Rxd1 {[%clk 0:01:15]}  Rd8 {[%clk 0:00:53]} 29. Re1 {[%clk 0:01:15]}  Bh5 {[%clk 0:00:48]} 30. Ba6 {[%clk 0:01:14]}  Ka8 {[%clk 0:00:33]} 31. a4 {[%clk 0:01:12]}  bxa6 {[%clk 0:00:32]} 32. Qe6 {[%clk 0:00:46]}  Bf6 {[%clk 0:00:28]} 33. Re3 {[%clk 0:00:40]}  Rb8 {[%clk 0:00:27]} 34. c3 {[%clk 0:00:38]}  Bf7 {[%clk 0:00:22]} 35. Qe4 {[%clk 0:00:35]}  Bd5 {[%clk 0:00:21]} 36. Qxh7 {[%clk 0:00:34]}  Qb6 {[%clk 0:00:21]} 37. Re2 {[%clk 0:00:31]}  Qb3 {[%clk 0:00:21]} 38. Kc1 {[%clk 0:00:24]}  Qa2 {[%clk 0:00:20]} 39. Kd2 {[%clk 0:00:22]}  Rxb2+ {[%clk 0:00:18]} 40. Ke3 {[%clk 0:00:23]}  Rxe2+ {[%clk 0:00:18]} 41. Kf4 {[%clk 0:00:23]}  Qd2+ {[%clk 0:00:18]} 42. Kf5 {[%clk 0:00:23]}  Qd3+ {[%clk 0:00:18]} 43. Kg4 {[%clk 0:00:22]}  Rg2+ {[%clk 0:00:17]} 44. Kh5 {[%clk 0:00:22]}  Qh3# {[%clk 0:00:17]} 0-1


[Site "https://www.chess.com"]

[Event "Titled Tuesday Blitz March 15 Late 2022"]
[White "Vifleemskaia, Svetlana"]
[Black "Clawitter, Craig"]
[WhiteFideId "4129490"]
[BlackFideId "2023105"]
[WhiteElo "1901"]
[BlackElo "2227"]
[Result "0-1"]
[Round "09"]
[TimeControl "180+1"]
[Date "2022.03.16"]
[WhiteClock "0:00:01"]
[BlackClock "0:00:04"]

1. d4 {[%clk 0:02:58]}  e6 {[%clk 0:02:58]} 2. c4 {[%clk 0:02:57]}  Nf6 {[%clk 0:02:58]} 3. Nc3 {[%clk 0:02:57]}  d5 {[%clk 0:02:58]} 4. cxd5 {[%clk 0:02:57]}  exd5 {[%clk 0:02:58]} 5. Bg5 {[%clk 0:02:57]}  c6 {[%clk 0:02:58]} 6. e3 {[%clk 0:02:56]}  Be7 {[%clk 0:02:57]} 7. Bd3 {[%clk 0:02:56]}  Nbd7 {[%clk 0:02:52]} 8. Qc2 {[%clk 0:02:56]}  O-O {[%clk 0:02:51]} 9. Nge2 {[%clk 0:02:54]}  Re8 {[%clk 0:02:51]} 10. O-O {[%clk 0:02:51]}  Nf8 {[%clk 0:02:51]} 11. f3 {[%clk 0:02:46]}  g6 {[%clk 0:02:51]} 12. Bh4 {[%clk 0:02:42]}  Ne6 {[%clk 0:02:47]} 13. Bf2 {[%clk 0:02:40]}  b5 {[%clk 0:02:45]} 14. a3 {[%clk 0:02:39]}  Bd7 {[%clk 0:02:33]} 15. Kh1 {[%clk 0:02:39]}  a5 {[%clk 0:02:32]} 16. e4 {[%clk 0:02:35]}  b4 {[%clk 0:02:15]} 17. Na4 {[%clk 0:02:22]}  Rc8 {[%clk 0:01:29]} 18. e5 {[%clk 0:02:19]}  Nh5 {[%clk 0:01:28]} 19. g3 {[%clk 0:01:56]}  Nhg7 {[%clk 0:00:31]} 20. Rfc1 {[%clk 0:01:37]}  c5 {[%clk 0:00:30]} 21. Nxc5 {[%clk 0:01:34]}  Nxc5 {[%clk 0:00:29]} 22. dxc5 {[%clk 0:01:34]}  Bxc5 {[%clk 0:00:20]} 23. Bxc5 {[%clk 0:01:31]}  Ne6 {[%clk 0:00:20]} 24. axb4 {[%clk 0:01:13]}  axb4 {[%clk 0:00:21]} 25. Ba6 {[%clk 0:00:24]}  Rxc5 {[%clk 0:00:18]} 26. Qd3 {[%clk 0:00:16]}  Qb6 {[%clk 0:00:16]} 27. Kg2 {[%clk 0:00:09]}  Ra8 {[%clk 0:00:12]} 28. Qe3 {[%clk 0:00:07]}  Rxa6 {[%clk 0:00:10]} 29. Rxa6 {[%clk 0:00:05]}  Qxa6 {[%clk 0:00:10]} 30. Rxc5 {[%clk 0:00:05]}  Nxc5 {[%clk 0:00:11]} 31. Qxc5 {[%clk 0:00:05]}  Qxe2+ {[%clk 0:00:11]} 32. Kg1 {[%clk 0:00:03]}  Qxf3 {[%clk 0:00:09]} 33. Qd6 {[%clk 0:00:02]}  Qd1+ {[%clk 0:00:08]} 34. Kg2 {[%clk 0:00:01]}  Qe2+ {[%clk 0:00:08]} 35. Kg1 {[%clk 0:00:02]}  Qe3+ {[%clk 0:00:08]} 36. Kg2 {[%clk 0:00:02]}  Qe4+ {[%clk 0:00:08]} 37. Kg1 {[%clk 0:00:02]}  Qf5 {[%clk 0:00:05]} 38. Qxd5 {[%clk 0:00:01]}  Be6 {[%clk 0:00:04]} 39. Qd8+ {[%clk 0:00:01]}  Kg7 {[%clk 0:00:04]} 40. Qd6 {[%clk 0:00:01]}  Qb1+ {[%clk 0:00:04]} 0-1


[Site "https://www.chess.com"]

[Event "Titled Tuesday Blitz March 15 Late 2022"]
[White "Weber, Samuel"]
[Black "Mekhitarian, Krikor Sevag"]
[WhiteFideId "12924008"]
[BlackFideId "2107660"]
[WhiteElo "2215"]
[BlackElo "2598"]
[Result "0-1"]
[Round "09"]
[TimeControl "180+1"]
[Date "2022.03.15"]
[WhiteClock "0:00:01"]
[BlackClock "0:01:45"]

1. e4 {[%clk 0:02:45]}  c5 {[%clk 0:02:59]} 2. Nf3 {[%clk 0:02:45]}  g6 {[%clk 0:02:59]} 3. d4 {[%clk 0:02:38]}  cxd4 {[%clk 0:03:00]} 4. Qxd4 {[%clk 0:02:38]}  Nf6 {[%clk 0:02:59]} 5. e5 {[%clk 0:02:39]}  Nc6 {[%clk 0:02:59]} 6. Qa4 {[%clk 0:02:39]}  Nd5 {[%clk 0:02:59]} 7. Bc4 {[%clk 0:02:39]}  Nb6 {[%clk 0:02:56]} 8. Qb3 {[%clk 0:01:18]}  Nxc4 {[%clk 0:02:53]} 9. Qxc4 {[%clk 0:01:19]}  Bg7 {[%clk 0:02:49]} 10. Bf4 {[%clk 0:01:18]}  O-O {[%clk 0:02:46]} 11. Nc3 {[%clk 0:01:17]}  d6 {[%clk 0:02:40]} 12. exd6 {[%clk 0:01:13]}  Be6 {[%clk 0:02:39]} 13. Qe2 {[%clk 0:01:07]}  exd6 {[%clk 0:02:36]} 14. O-O {[%clk 0:01:07]}  Re8 {[%clk 0:02:35]} 15. Qd2 {[%clk 0:01:05]}  Bg4 {[%clk 0:02:31]} 16. Ng5 {[%clk 0:00:58]}  h6 {[%clk 0:02:25]} 17. Nge4 {[%clk 0:00:56]}  d5 {[%clk 0:02:25]} 18. Nc5 {[%clk 0:00:36]}  d4 {[%clk 0:02:24]} 19. Nb5 {[%clk 0:00:25]}  Qd5 {[%clk 0:02:15]} 20. b4 {[%clk 0:00:14]}  b6 {[%clk 0:02:09]} 21. Nc7 {[%clk 0:00:14]}  Qf5 {[%clk 0:02:09]} 22. Nxa8 {[%clk 0:00:13]}  bxc5 {[%clk 0:02:10]} 23. Nc7 {[%clk 0:00:13]}  Re2 {[%clk 0:02:06]} 24. Qd3 {[%clk 0:00:12]}  Qxf4 {[%clk 0:02:06]} 25. f3 {[%clk 0:00:12]}  Re3 {[%clk 0:02:02]} 26. fxg4 {[%clk 0:00:10]}  Qxc7 {[%clk 0:02:01]} 27. Qc4 {[%clk 0:00:06]}  Nxb4 {[%clk 0:02:00]} 28. Rab1 {[%clk 0:00:06]}  Re7 {[%clk 0:01:55]} 29. a3 {[%clk 0:00:02]}  Nc6 {[%clk 0:01:55]} 30. Qxc5 {[%clk 0:00:02]}  d3 {[%clk 0:01:56]} 31. Kh1 {[%clk 0:00:02]}  d2 {[%clk 0:01:48]} 32. Rbd1 {[%clk 0:00:02]}  Bd4 {[%clk 0:01:46]} 33. Qc4 {[%clk 0:00:01]}  Be3 {[%clk 0:01:45]} 0-1


[Site "https://www.chess.com"]